[Event "CZE-ch U14 Open 2023"]
[Site "Teplice"]
[Date "2023.03.13"]
[Round "4.10"]
[White "Srba, Daniel"]
[Black "Tichy, Tomas"]
[Result "1-0"]
[ECO "B33"]
[WhiteElo "1509"]
[BlackElo "1810"]
[Annotator "NA RC COMBH"]
[PlyCount "129"]
[EventDate "2023.03.09"]
[EventType "swiss"]
[EventCountry "CZE"]
[SourceTitle "playchess.com"]
[Source "ChessBase"]
[SourceQuality "1"]
[TimeControl "40/5400+30:1800+30"]

1. e4 {[%emt 0:00:03]} c5 {[%emt 0:00:14]} 2. Nf3 {[%emt 0:00:02]} Nc6 {[%emt 0:00:06]} 3. d4 {[%emt 0:00:31]} cxd4 {[%emt 0:00:02]} 4. Nxd4 {[%emt 0:00:08]} Nf6 {[%emt 0:00:04]} 5. Nc3 {[%emt 0:00:50]} e5 {[%emt 0:00:02]} 6. Ndb5 {[%emt 0:00:18]} d6 {[%emt 0:00:07]} 7. Bg5 {[%emt 0:00:52]} a6 {[%emt 0:00:10]} 8. Na3 {[%emt 0:00:22]} b5 {[%emt 0:00:07]} 9. Nd5 {[%emt 0:00:04]} Be7 {[%emt 0:00:06]} 10. Bxf6 {[%emt 0:00:44]} Bxf6 {[%emt 0:00:10]} 11. c3 {[%emt 0:00:41]} Bg5 {[%emt 0:00:10]} 12. Nc2 {[%emt 0:01:02]} O-O {[%emt 0:00:16]} 13. a4 {[%emt 0:01:36]} bxa4 {[%emt 0:00:30]} 14. Rxa4 {[%emt 0:01:13]} a5 {[%emt 0:00:23]} 15. Bc4 {[%emt 0:06:04]} Rb8 {[%emt 0:00:28]} 16. Ra2 {[%emt 0:05:03]} g6 {[%emt 0:02:54]} 17. O-O {[%emt 0:04:10]} Kh8 {[%emt 0:03:30]} 18. Qe2 {[%emt 0:12:31]} Bd7 {[%emt 0:08:16]} 19. b4 {[%emt 0:12:00]} f5 {[%emt 0:09:35]} 20. b5 {[%emt 0:12:42]} Ne7 {[%emt 0:02:56]} 21. Nxe7 {[%emt 0:03:07]} Bxe7 {[%emt 0:00:40]} 22. exf5 {[%emt 0:05:25]} Bxf5 {[%emt 0:10:33]} 23. Bd5 {[%emt 0:03:06]} Bxc2 {[%emt 0:03:55]} 24. Rxc2 {[%emt 0:00:16]} Qb6 {[%emt 0:02:43]} 25. c4 {[%emt 0:01:14]} Rf5 {[%emt 0:08:53]} 26. Kh1 {[%emt 0:04:35]} Rbf8 {[%emt 0:02:58]} 27. f3 {[%emt 0:02:01]} Bd8 {[%emt 0:07:31]} 28. Qf2 {[%emt 0:02:52]} Qxf2 {[%emt 0:04:08]} 29. Rcxf2 {[%emt 0:00:41]} Bb6 {[%emt 0:02:33]} 30. Ra2 {[%emt 0:00:20]} Rf4 {[%emt 0:01:53]} 31. Rd1 {[%emt 0:01:30]} g5 {[%emt 0:08:40]} 32. Be4 {[%emt 0:01:55]} R4f6 {[%emt 0:00:33]} 33. Rad2 {[%emt 0:00:49]} Rd8 {[%emt 0:02:58]} 34. Rd5 {[%emt 0:00:49]} Bd4 {[%emt 0:05:56]} 35. c5 {[%emt 0:01:38]} Kg7 {[%emt 0:00:50]} 36. c6 {[%emt 0:00:53]} Rc8 {[%emt 0:01:02]} 37. R5xd4 {[%emt 0:02:33]} exd4 {[%emt 0:00:36]} 38. b6 {[%emt 0:00:27]} Rf7 {[%emt 0:03:24]} 39. c7 {[%emt 0:00:37]} Rfxc7 {[%emt 0:01:05]} 40. bxc7 {[%emt 0:00:03]} Rxc7 {[%emt 0:00:10]} 41. Kg1 {[%emt 0:30:06]} Rc4 {[%emt 0:34:41]} 42. Ra1 {[%emt 0:00:26]} Rc5 {[%emt 0:02:12]} 43. Ra4 {[%emt 0:00:26]} d5 {[%emt 0:00:00]} 44. Bf5 {[%emt 0:00:00]} h5 {[%emt 0:00:00]} 45. Rxd4 {[%emt 0:00:00]} Kf6 {[%emt 0:00:00]} 46. Bh7 {[%emt 0:00:00]} Ke5 {[%emt 0:00:00]} 47. Ra4 {[%emt 0:00:00]} d4 {[%emt 0:00:00]} 48. Kf2 {[%emt 0:00:00]} h4 {[%emt 0:00:00]} 49. Bd3 {[%emt 0:00:00]} Rd5 {[%emt 0:00:00]} 50. Bc4 {[%emt 0:00:00]} Rc5 {[%emt 0:00:00]} 51. Ke2 {[%emt 0:00:00]} g4 {[%emt 0:00:00]} 52. fxg4 {[%emt 0:00:00]} Kf4 {[%emt 0:00:00]} 53. Kd3 {[%emt 0:00:00]} Rg5 {[%emt 0:00:00]} 54. Be6 {[%emt 0:00:00]} Re5 {[%emt 0:00:00]} 55. Rxd4+ {[%emt 0:00:00]} Kg5 {[%emt 0:00:00]} 56. Rd5 {[%emt 0:00:00]} Rxd5+ {[%emt 0:00:00]} 57. Bxd5 {[%emt 0:00:00]} Kxg4 {[%emt 0:00:00]} 58. h3+ {[%emt 0:00:00]} Kg3 {[%emt 0:00:17]} 59. Kc4 {[%emt 0:00:00]} a4 {[%emt 0:00:29]} 60. Kb4 {[%emt 0:00:00]} a3 {[%emt 0:00:10]} 61. Kxa3 {[%emt 0:00:00]} Kh2 {[%emt 0:01:03]} 62. Kb3 {[%emt 0:00:00]} Kg3 {[%emt 0:00:16]} 63. Kc3 {[%emt 0:00:00]} Kh2 {[%emt 0:00:06]} 64. Kd4 {[%emt 0:00:00]} Kg3 {[%emt 0:00:06]} 65. Ke5 {[%emt 0:00:00]} 1-0

[Event "CZE-ch U14 Open 2023"]
[Site "Teplice"]
[Date "2023.03.13"]
[Round "4.11"]
[White "Hobza, Richard"]
[Black "Striz, Tadeas"]
[Result "1-0"]
[ECO "A05"]
[WhiteElo "1702"]
[BlackElo "1503"]
[Annotator "NA RC COMBH"]
[PlyCount "81"]
[EventDate "2023.03.09"]
[EventType "swiss"]
[EventCountry "CZE"]
[SourceTitle "playchess.com"]
[Source "ChessBase"]
[SourceQuality "1"]
[TimeControl "40/5400+30:1800+30"]

1. Nf3 {[%emt 0:00:05]} Nf6 {[%emt 0:00:09]} 2. g3 {[%emt 0:00:03]} b6 {[%emt 0:00:14]} 3. Bg2 {[%emt 0:00:37]} Bb7 {[%emt 0:00:01]} 4. d4 {[%emt 0:02:09]} e6 {[%emt 0:00:27]} 5. O-O {[%emt 0:00:38]} d5 {[%emt 0:00:27]} 6. c3 {[%emt 0:02:05]} Be7 {[%emt 0:00:25]} 7. Bg5 {[%emt 0:07:26]} Nbd7 {[%emt 0:00:42]} 8. Nbd2 {[%emt 0:03:36]} O-O {[%emt 0:01:02]} 9. Re1 {[%emt 0:02:29]} Ne4 {[%emt 0:11:03]} 10. Bxe7 {[%emt 0:02:41]} Qxe7 {[%emt 0:00:37]} 11. Nxe4 {[%emt 0:02:39]} dxe4 {[%emt 0:00:04]} 12. Nd2 {[%emt 0:00:29]} f5 {[%emt 0:00:17]} 13. f3 {[%emt 0:01:44]} Nf6 {[%emt 0:02:26]} 14. fxe4 {[%emt 0:00:37]} Nxe4 {[%emt 0:01:24]} 15. Nxe4 {[%emt 0:00:10]} Bxe4 {[%emt 0:00:01]} 16. Bxe4 {[%emt 0:00:34]} fxe4 {[%emt 0:00:01]} 17. Qc2 {[%emt 0:01:00]} Qd6 {[%emt 0:16:16]} 18. Qxe4 {[%emt 0:00:57]} Qd5 {[%emt 0:00:03]} 19. Qxd5 {[%emt 0:00:51]} exd5 {[%emt 0:00:01]} 20. Rf1 {[%emt 0:00:35]} Rae8 {[%emt 0:01:41]} 21. Rxf8+ {[%emt 0:01:12]} Kxf8 {[%emt 0:00:32]} 22. Kf2 {[%emt 0:00:21]} Kf7 {[%emt 0:00:02]} 23. e3 {[%emt 0:00:37]} h5 {[%emt 0:03:09]} 24. Ke2 {[%emt 0:00:50]} Ke7 {[%emt 0:00:30]} 25. Kd3 {[%emt 0:00:12]} Kd6 {[%emt 0:00:02]} 26. Re1 {[%emt 0:00:46]} Rf8 {[%emt 0:00:42]} 27. Ke2 {[%emt 0:03:03]} g5 {[%emt 0:02:28]} 28. Rf1 {[%emt 0:00:28]} Rxf1 {[%emt 0:01:33]} 29. Kxf1 {[%emt 0:00:04]} Ke6 {[%emt 0:00:56]} 30. Ke2 {[%emt 0:00:32]} b5 {[%emt 0:01:32]} 31. b3 {[%emt 0:00:56]} Kf5 {[%emt 0:05:00]} 32. Kd3 {[%emt 0:19:09]} c6 {[%emt 0:05:13]} 33. a4 {[%emt 0:08:34]} a6 {[%emt 0:21:27]} 34. axb5 {[%emt 0:00:37]} axb5 {[%emt 0:00:03]} 35. h3 {[%emt 0:00:34]} h4 {[%emt 0:04:08]} 36. g4+ {[%emt 0:00:09]} Ke6 {[%emt 0:04:03]} 37. e4 {[%emt 0:00:20]} Kf6 {[%emt 0:00:02]} 38. c4 {[%emt 0:02:22]} dxe4+ {[%emt 0:04:25]} 39. Kxe4 {[%emt 0:00:12]} Ke6 {[%emt 0:00:17]} 40. cxb5 {[%emt 0:00:15]} cxb5 {[%emt 0:00:01]} 41. d5+ {[%emt 0:30:11]} 1-0

[Event "CZE-ch U14 Open 2023"]
[Site "Teplice"]
[Date "2023.03.13"]
[Round "4.12"]
[White "Dusanek, Michal"]
[Black "Macosek, Alex"]
[Result "1-0"]
[ECO "B06"]
[WhiteElo "1624"]
[BlackElo "1466"]
[Annotator "NA RC COMBH"]
[PlyCount "47"]
[EventDate "2023.03.09"]
[EventType "swiss"]
[EventCountry "CZE"]
[SourceTitle "playchess.com"]
[Source "ChessBase"]
[SourceQuality "1"]
[TimeControl "40/5400+30:1800+30"]

1. d4 {[%emt 0:00:15]} g6 {[%emt 0:00:56]} 2. e4 {[%emt 0:00:41]} Bg7 {[%emt 0:00:05]} 3. c4 {[%emt 0:01:28]} d6 {[%emt 0:00:40]} 4. Be3 {[%emt 0:01:28]} c5 {[%emt 0:00:40]} 5. Nc3 {[%emt 0:06:02]} b6 {[%emt 0:01:49]} 6. g3 {[%emt 0:03:12]} Nc6 {[%emt 0:02:22]} 7. d5 {[%emt 0:05:04]} Ne5 {[%emt 0:01:17]} 8. h3 {[%emt 0:01:56]} Ba6 {[%emt 0:03:52]} 9. Qa4+ {[%emt 0:02:14]} b5 {[%emt 0:02:06]} 10. Qxa6 {[%emt 0:00:37]} bxc4 {[%emt 0:00:13]} 11. f4 {[%emt 0:02:05]} Nd7 {[%emt 0:00:37]} 12. Bxc4 {[%emt 0:00:53]} Rb8 {[%emt 0:01:03]} 13. Bb5 {[%emt 0:05:43]} Rb6 {[%emt 0:01:12]} 14. Qa4 {[%emt 0:02:12]} Ngf6 {[%emt 0:01:42]} 15. e5 {[%emt 0:00:45]} dxe5 {[%emt 0:00:49]} 16. fxe5 {[%emt 0:00:08]} Nh5 {[%emt 0:00:17]} 17. Bxc5 {[%emt 0:03:33]} O-O {[%emt 0:02:04]} 18. Bxd7 {[%emt 0:08:27]} Rxb2 {[%emt 0:00:14]} 19. Nge2 {[%emt 0:11:04]} Bxe5 {[%emt 0:01:06]} 20. O-O-O {[%emt 0:02:16]} Qb8 {[%emt 0:01:14]} 21. Qa3 {[%emt 0:02:23]} Rb7 {[%emt 0:01:17]} 22. Bc6 {[%emt 0:02:10]} Rc7 {[%emt 0:02:13]} 23. Bxe7 {[%emt 0:04:46]} Rfc8 {[%emt 0:06:43]} 24. Qb4 {[%emt 0:02:30]} 1-0

[Event "CZE-ch U14 Open 2023"]
[Site "Teplice"]
[Date "2023.03.14"]
[Round "5.1"]
[White "Juhanak, Daniel"]
[Black "Zemek, Antonin"]
[Result "1-0"]
[ECO "C05"]
[WhiteElo "1952"]
[BlackElo "1739"]
[Annotator "TA"]
[PlyCount "45"]
[EventDate "2023.03.09"]
[EventType "swiss"]
[EventCountry "CZE"]
[SourceTitle "playchess.com"]
[Source "ChessBase"]
[SourceQuality "1"]
[TimeControl "40/5400+30:1800+30"]

{[%evp 13,45,36,66,57,62,37,56,35,50,52,128,126,821,827,836,788,883,882,1107,1119,1785,1708,3003,2975,3644,3283,29986,29987,29987,29988,29985,3118,29991,29992]} 1. e4 {[%emt 0:00:41]} e6 {[%emt 0:00:24]} 2. d4 {[%emt 0:00:01]} d5 {[%emt 0:01:10]} 3. Nd2 {[%emt 0:00:05]} Nf6 {[%emt 0:01:20]} 4. e5 {[%emt 0:00:02]} Nfd7 {[%emt 0:01:16]} 5. Bd3 {[%emt 0:00:01]} c5 {[%emt 0:00:49]} 6. c3 {[%emt 0:00:06]} Nc6 {[%emt 0:00:56]} 7. Ne2 {[%emt 0:00:13]} a6 {[%emt 0:04:17]} 8. O-O {[%emt 0:06:18] C06: French Tarrasch: 3...Nf6 4 e5 Nfd7 5 Bd3 main lines.} Be7 {[%emt 0:03:24]} 9. f4 {[%emt 0:02:50]} cxd4 {[%emt 0:01:47]} 10. cxd4 {[%emt 0:00:23] White is slightly better.} f6 {[%emt 0:01:49]} 11. Nf3 {[%emt 0:04:23] [#]} b5 $146 {[%emt 0:02:53] [#]} ({Black should play} 11... f5 $14) ({Predecessor:} 11... f5) 12. Bxh7 $1 $16 {[%mdl 64] Decoy} Nxd4 $2 {[%emt 0:01:15][%mdl 8192]} (12... Rxh7 $16 13. Qc2 Nf8) 13. Bg6+ $18 {[%emt 0:08:48][%mdl 64] Zwischenzug} ({Not} 13. Nfxd4 Rxh7 14. Be3 (14. Nxe6 Qb6+ 15. N6d4 g6 $16) (14. Qc2 Nf8 $16) 14... Nf8 $18) 13... Kf8 {[%emt 0:00:08]} 14. Nexd4 {[%emt 0:00:25]} ({Weaker is} 14. Qxd4 Bc5 $11) 14... Bc5 {[%emt 0:02:23]} 15. Be3 {[%emt 0:02:09]} Qb6 {[%emt 0:00:19]} 16. Rc1 {[%emt 0:04:05]} Ke7 {[%emt 0:02:56] [#]} 17. b4 $1 {[%emt 0:01:50][%cal Bb2b4,Bb4c5][%mdl 32]} fxe5 {[%emt 0:01:22]} (17... Bxd4 18. Nxd4) 18. bxc5 {[%emt 0:00:37]} Qc7 {[%emt 0:00:16]} 19. fxe5 {[%emt 0:00:30][%cal Od4e6] Intending Nxe6! and mate.} Rf8 {[%emt 0:01:34]} 20. Bg5+ {[%emt 0:01:03]} Nf6 {[%emt 0:00:12]} 21. exf6+ {[%emt 0:00:58]} gxf6 {[%emt 0:00:07]} 22. Bh4 {[%emt 0:01:26]} (22. Ne5 $142 Qxe5 23. Nc6+ Kd7 24. Nxe5+ {[%mdl 64] Pin} Kc7 25. c6 Rg8 26. Bxf6 a5 27. Qd4) 22... e5 {[%emt 0:00:35] [#]} 23. Nxe5 $1 {[%emt 0:00:27] Black did not feel at home in the position after the opening.   Weighted Error Value: White=0.05 (flawless) /Black=1.55} 1-0

[Event "CZE-ch U14 Open 2023"]
[Site "Teplice"]
[Date "2023.03.14"]
[Round "5.2"]
[White "Hrbek, Jachym"]
[Black "Zelba, Lukas"]
[Result "0-1"]
[ECO "C01"]
[WhiteElo "1824"]
[BlackElo "1912"]
[Annotator "TA"]
[PlyCount "54"]
[EventDate "2023.03.09"]
[EventType "swiss"]
[EventCountry "CZE"]
[SourceTitle "playchess.com"]
[Source "ChessBase"]
[SourceQuality "1"]
[TimeControl "40/5400+30:1800+30"]

{[%evp 20,53,62,54,51,46,47,34,54,36,132,148,144,41,50,41,49,40,118,105,118,33,58,22,10,15,16,19,14,39,50,-108,112,-5589,-5485,-29999]} 1. e4 {[%emt 0:00:03]} e6 {[%emt 0:01:35]} 2. d4 {[%emt 0:00:18]} d5 {[%emt 0:00:20]} 3. exd5 {[%emt 0:00:21]} exd5 {[%emt 0:00:33]} 4. Nf3 {[%emt 0:00:08]} Bd6 {[%emt 0:02:37]} 5. Bd3 {[%emt 0:00:30]} Nc6 {[%emt 0:02:30]} 6. O-O {[%emt 0:01:33]} Nge7 {[%emt 0:02:59]} 7. Re1 {[%emt 0:00:49]} Bg4 {[%emt 0:02:41]} 8. c3 {[%emt 0:00:20]} Qd7 {[%emt 0:02:20]} 9. Nbd2 {[%emt 0:00:33]} O-O-O {[%emt 0:04:36]} 10. b4 {[%emt 0:00:53][%cal Bb2b4,Bb4b5][%mdl 32]} Ng6 {[%emt 0:03:06]} 11. Qa4 {[%emt 0:00:47] has lost popularity (11.b5).} Kb8 {[%emt 0:05:22] C01: French: Exchange Variation.} 12. b5 {[%emt 0:01:29]} Nce7 {[%emt 0:00:30]} 13. Ne5 $1 {[%emt 0:01:15]} Bxe5 {[%emt 0:19:00] White is slightly better.} 14. dxe5 {[%emt 0:00:20]} f6 {[%emt 0:00:03]} ({Black should play} 14... d4 $14) 15. exf6 $16 {[%emt 0:16:15]} gxf6 {[%emt 0:00:07] [#]} 16. Ba3 $146 {[%emt 0:00:23]} ({White should try} 16. Nb3 $1 $16) ({Predecessor:} 16. Nb3 b6 17. Nd4 Rde8 18. Bxg6 hxg6 19. f3 Nc8 20. Bf4 Bf5 21. Nc6+ Ka8 22. Qd4 {1-0 Koykka,P (2372)-Valsecchi,A (2503) Rilton Cup 49th 2019 (2)}) 16... Nc8 $14 {[%emt 0:00:46]} (16... Bf5 $2 17. Bxe7 Bxd3 18. Bxf6 $18 (18. Bxd8 Rxd8 19. Qd4 Bxb5 $16)) 17. Qd4 {[%emt 0:11:38]} (17. Bf1 $5 {[%cal Ra4d4]}) 17... Ne5 {[%emt 0:07:41]} 18. Bf1 $1 {[%emt 0:00:55] A strong pair of Bishops.} Qf5 {[%emt 0:12:49]} (18... Rhg8 $14) 19. f3 $16 {[%emt 0:11:24]} Bh5 {[%emt 0:01:32]} 20. Kh1 {[%emt 0:08:22]} ({Better is} 20. f4 $16 Nc4 21. Nxc4 dxc4 22. Qxc4) 20... Rhg8 {[%emt 0:03:27]} 21. g4 {[%emt 0:06:20]} Bxg4 {[%emt 0:02:37]} 22. fxg4 {[%emt 0:00:29]} Rxg4 {[%emt 0:00:05]} 23. Qe3 {[%emt 0:03:08] Bh3 would be deadly.} d4 {[%emt 0:01:39]} 24. cxd4 {[%emt 0:00:49]} Rdxd4 {[%emt 0:02:57]} 25. Bh3 $2 {[%emt 0:03:00] [#]} (25. Rad1 $14) 25... Rxd2 $2 {[%emt 0:01:02]} 26. Rf1 $2 {[%emt 0:13:25][%mdl 8192]} (26. Qxd2 $16 Qf3+ 27. Bg2 Qxa3 28. Qd5) 26... Qc2 $19 {[%emt 0:01:17][%csl Gc2][%cal Rd2h2]} 27. Rac1 {[%emt 0:04:22]} Rxh2# {A cool game by Zelba.   Weighted Error Value: White=0.86/Black=0.38} 0-1

[Event "CZE-ch U14 Open 2023"]
[Site "Teplice"]
[Date "2023.03.14"]
[Round "5.3"]
[White "Stary, Vojtech"]
[Black "Martirosyan, David"]
[Result "0-1"]
[ECO "C42"]
[WhiteElo "1814"]
[BlackElo "1975"]
[Annotator "TA"]
[PlyCount "148"]
[EventDate "2023.03.09"]
[EventType "swiss"]
[EventCountry "CZE"]
[SourceTitle "playchess.com"]
[Source "ChessBase"]
[SourceQuality "1"]
[TimeControl "40/5400+30:1800+30"]

{[%evp 9,148,14,8,12,19,22,16,8,18,19,50,18,30,0,0,0,8,0,0,0,8,0,0,-7,0,0,0,0,0,0,0,0,0,0,0,0,0,0,6,5,10,9,13,0,0,0,0,0,0,0,0,0,47,8,38,28,29,24,108,117,116,26,54,56,50,0,0,-69,-66,-66,-43,-83,-8,-60,-51,-70,-27,-30,-15,-100,-97,-270,-270,-270,-270,-270,-165,-126,-8,-21,-21,-162,-160,-29974,-29975,-29975,-29976,-29975,-29976,-29958,-29,-68,-30,-43,-21,-156,-156,-156,0,-1059,-1049,-29963,-4793,-29964,-29966,-1122,-891,-29986,-29987,-29987,-29977,-29977,-29978,-29978,-29979,-29979,-29980,-29980,-29981,-29981,-29982,-29982,-29983,-29983,-29984,-29984,-29984,-29984,-29985,-29985,-29986]} 1. e4 {[%emt 0:00:02]} e5 {[%emt 0:00:14]} 2. Nf3 {[%emt 0:00:10]} Nf6 {[%emt 0:00:16]} 3. Nxe5 {[%emt 0:00:04]} d6 {[%emt 0:00:13]} 4. Nd3 {[%emt 0:00:07]} Nxe4 {[%emt 0:00:15]} 5. Qe2 {[%emt 0:00:08]} Qe7 {[%emt 0:00:57]} 6. Nf4 {[%emt 0:00:10] And now Nd5 would win. C42: Petroff Defence: 3 Nxe5 and unusual White 3rd moves.} c6 {[%emt 0:01:37] Prevents Nd5 Recently 6...Nc6 got a lot of attention.} 7. f3 {[%emt 0:01:07]} Nf6 {[%emt 0:00:43]} 8. d4 {[%emt 0:00:44] The position is equal.} Bf5 {[%emt 0:03:15] [#]} 9. c3 $146 {[%emt 0:03:52]} ({Predecessor:} 9. c4 h5 10. Nc3 Na6 11. Kf2 Nb4 12. Qd1 O-O-O 13. Nd3 d5 14. c5 Nxd3+ 15. Bxd3 {1-0 Carlsen,M (2859)-Rapport,R (2740) Tata Steel-A 85th 2023 (7)}) 9... Nbd7 {[%emt 0:05:31]} 10. Qxe7+ {[%emt 0:02:26]} Bxe7 {[%emt 0:00:18]} 11. Bd3 {[%emt 0:00:41]} Bxd3 {[%emt 0:05:32]} 12. Nxd3 {[%emt 0:00:16]} O-O {[%emt 0:00:33]} 13. O-O {[%emt 0:11:32]} Rfe8 {[%emt 0:01:57]} 14. Re1 {[%emt 0:07:57]} Bf8 {[%emt 0:02:23]} 15. Be3 {[%emt 0:02:42]} Nd5 {[%emt 0:07:31]} 16. Kf2 {[%emt 0:04:31]} Nxe3 {[%emt 0:04:50]} 17. Rxe3 {[%emt 0:00:51]} Rxe3 {[%emt 0:01:30]} 18. Kxe3 {[%emt 0:00:09]} Re8+ {[%emt 0:00:10]} 19. Kf2 {[%emt 0:01:08]} c5 {[%emt 0:10:43]} 20. dxc5 {[%emt 0:04:30]} dxc5 {[%emt 0:00:10]} 21. Nd2 {[%emt 0:03:10]} Nb6 {[%emt 0:01:33]} 22. c4 {[%emt 0:08:10]} g6 {[%emt 0:02:08]} 23. b3 {[%emt 0:01:43]} Bg7 {[%emt 0:03:05]} 24. Rd1 {[%emt 0:03:20]} Bd4+ {[%emt 0:01:05]} 25. Kf1 {[%emt 0:00:41]} f5 {[%emt 0:01:02] Repels Ne4} 26. Re1 {[%emt 0:03:02]} Rd8 {[%emt 0:00:48]} 27. Nb1 {[%emt 0:09:02]} Kf7 {[%emt 0:03:19]} 28. Na3 {[%emt 0:06:59]} a6 {[%emt 0:05:59] Against Nb5} 29. Nc2 {[%emt 0:01:41]} Bc3 {[%emt 0:01:24][%csl LRd3,LRe1]} 30. Rd1 {[%emt 0:01:03]} Kf6 {[%emt 0:03:58]} (30... Rd6 $11 {deserves consideration.}) 31. Ke2 {[%emt 0:09:48]} (31. Ne3 $5 {[%cal Rd3c5]}) 31... Rc8 {[%emt 0:15:24] [#]} 32. Nxc5 $1 {[%emt 0:02:21]} Rxc5 {[%emt 0:05:52]} 33. Rd6+ {[%emt 0:00:18]} Ke5 {[%emt 0:00:05]} (33... Kf7 $11) 34. Rxb6 $16 {[%emt 0:00:16][%mdl 4096] Endgame KRB-KRN} Rc7 {[%emt 0:00:21]} 35. Ne3 {[%emt 0:07:43]} (35. g3 $16 {Threatening mate with f4+.} f4 36. Kd3) 35... Ba5 {[%emt 0:04:45] [#]} 36. f4+ $1 {[%emt 0:01:12][%mdl 64] Decoy} Kxf4 {[%emt 0:00:34]} 37. Nd5+ {[%emt 0:00:29]} (37. Re6 $14 Kg5 38. g3) 37... Ke5 $11 {[%emt 0:00:15]} 38. Nxc7 {[%emt 0:00:13]} ({White should try} 38. Rf6 $11) 38... Bxb6 {[%emt 0:00:08] KB-KN} 39. Nd5 {[%emt 0:00:16]} Bd4 {[%emt 0:01:12]} 40. Kd3 {[%emt 0:00:18][%cal Od5f6]} g5 {[%emt 0:02:27]} (40... Bg1 $17 41. h3 g5) 41. b4 {[%emt 0:35:01]} ({Better is} 41. Nf6 $1 $11) 41... g4 {[%emt 0:35:04]} 42. h3 {[%emt 0:00:00]} gxh3 {[%emt 0:00:00]} (42... Bf2 $5 {[%cal Rg4h3]}) 43. gxh3 {[%emt 0:00:00][%cal Od5f6]} Bf2 {[%emt 0:00:00]} 44. a4 {[%emt 0:00:00]} (44. Nc7 $11) 44... f4 {[%emt 0:00:00][%cal Bf5f4,Bf4f3][%mdl 32]} 45. b5 $2 {[%emt 0:00:00]} (45. Ke2 $17 Bh4 46. Nc7) 45... axb5 $19 {[%emt 0:00:00]} 46. axb5 {[%emt 0:00:00]} f3 {[%emt 0:00:00]} 47. Nc3 {[%emt 0:00:00]} b6 {[%emt 0:00:00] Hoping for ...Kf4.} 48. Ne4 {[%emt 0:00:00]} Bd4 {[%emt 0:00:00]} (48... Bg1 $1 $17 {aiming for ...h5.} 49. h4 Kf4) 49. Nd2 {[%emt 0:02:18]} f2 {[%emt 0:00:00]} 50. Nf1 {[%emt 0:00:31]} (50. Ke2 $11) 50... Bc5 $1 {[%emt 0:00:00]} 51. Nh2 $2 {[%emt 0:01:26]} (51. h4 $17) 51... Kf4 {[%emt 0:00:00]} 52. Nf1 {[%emt 0:00:52]} Kf3 {[%emt 0:00:00]} 53. Nd2+ {[%emt 0:01:13]} Kg2 {[%emt 0:00:00]} 54. Ke2 {[%emt 0:00:07]} Kxh3 $2 {[%emt 0:00:00]} (54... h5 {mates} 55. h4 Be7 56. Nf1 Bxh4 57. Ne3+ Kg1 58. c5 Bd8 59. Nf1 bxc5 60. Nh2 Kg2 61. Nf1 h4 62. Ne3+ Kg1 63. Nf1 h3 64. Ng3 Kg2 65. Nf1 h2 66. Nxh2 Bb6 67. Nf1 c4 68. Nd2 c3 69. Nf1 c2 70. Nd2 c1=Q 71. Kd3 Kh3 72. Ke2 Qc3 73. Kd1 Be3 74. Ke2 Qxd2+ 75. Kf3 f1=Q+ 76. Ke4 Qf4#) 55. Kf1 $11 {[%emt 0:00:22]} Kg4 {[%emt 0:01:56] Strongly threatening ...Be3.} 56. Ne4 {[%emt 0:00:15][%cal Oe4c5] Nxc5! is the strong threat.} Bd4 {[%emt 0:01:25]} (56... Be3 $5 {[%cal Rg4f3]} 57. Nxf2+ Kf4 58. Nd3+ Ke4 $15) 57. Nxf2+ {[%emt 0:00:24]} (57. c5 $1 $11 {was the only way to keep the balance.}) 57... Kf3 $1 $17 {[%emt 0:00:51]} 58. Nd3 {[%emt 0:01:03][%cal Oc4c5] [#]} h5 $2 {[%emt 0:00:56]} ({Black should play} 58... Ke3 $1 $17 {[%cal Re3d3]} 59. Nb4 Bc5) 59. Ne1+ {[%emt 0:00:42][%mdl 8192] [#]} (59. c5 $11 h4 60. c6) 59... Kg3 $1 $19 {[%emt 0:00:41]} 60. Nc2 {[%emt 0:00:34]} Bc5 {[%emt 0:00:22]} (60... Bf2 $142 61. Nb4 h4 62. Nd3 Be3 63. Ke2 Bd4 64. Ne1 h3 65. Nf3 Bg1 66. Nd2 Kg2 67. Nf3 h2 68. Nxh2 Kxh2 69. Kf3 Kh3 70. Kf4 Kg2 71. c5 Bxc5 72. Ke4 Bg1 73. Ke5 Kf3 74. Kd5 Ke3 75. Kc4 Ke4 76. Kc3 Kd5 77. Kb4 Kd4 78. Ka3 Kc5 79. Ka4 Bd4 80. Ka3 Kxb5 81. Kb3 Kc5 82. Kc2 b5 83. Kd3 b4 84. Kc2 Kc4 85. Kd2 b3 86. Kd1 b2 87. Kc2 Be5 88. Kd1 Kd3 89. Ke1 Ke3 90. Kf1 b1=Q+ 91. Kg2 Qe1 92. Kh3 Qg3#) 61. Ne1 {[%emt 0:00:40]} h4 {[%emt 0:00:19][%cal Bh5h4,Bh4h3][%mdl 32]} 62. Nd3 {[%emt 0:00:25]} Bd4 {[%emt 0:00:28] ( -> ...h3)} 63. c5 {[%emt 0:00:13]} h3 {[%emt 0:00:58] Black mates.} (63... Bxc5 64. Nxc5 Kh2 65. Nd7 Kh1 66. Ne5 (66. Nxb6 h3 $11) 66... Kh2 67. Kf2 Kh3 68. Nd7) 64. Nc1 {[%emt 0:00:40]} Bxc5 {[%emt 0:00:18]} 65. Ne2+ {[%emt 0:00:17]} Kf3 {[%emt 0:00:31]} 66. Ng1+ {[%emt 0:00:08]} Bxg1 {[%emt 0:00:12]} 67. Kxg1 {[%emt 0:00:03] KPP-KP} Ke4 {[%emt 0:00:07]} 68. Kh2 {[%emt 0:00:11]} Kd5 {[%emt 0:00:07]} 69. Kxh3 {[%emt 0:00:08] KP-KP} Kc5 {[%emt 0:00:07]} 70. Kg3 {[%emt 0:00:13]} Kxb5 {[%emt 0:00:04]} 71. Kf2 {[%emt 0:00:14]} Kc4 {[%emt 0:00:11][%cal Bb5c4,Bc4c3,Bc3b2][%mdl 32]} 72. Ke1 {[%emt 0:00:02]} Kc3 {[%emt 0:00:28]} 73. Kd1 {[%emt 0:00:03]} Kb2 {[%emt 0:00:38]} 74. Kd2 {[%emt 0:00:12]} b5 {[%emt 0:00:04] Weighted Error Value: White=0.61/Black=0.40} 0-1